Cogmind - Beta 13 *** ADVENTURER MODE // 2024.04.04 @ 22:13:04 Player: Tav Result: Self-destructed Performance ------------- Evolutions (3) 1500 Regions Visited (4) 800 Robots Destroyed (46) 230 Value Destroyed (1271) 1271 Prototype IDs (4) 80 Alien Tech Used (0) 0 Bonus (0) 0 TOTAL SCORE: 3881 Bonus ------- None Cogmind --------- Core Integrity 363/700 Matter 190/300 Energy 70/100 System Corruption 3% Temperature Cool (0) Movement Core (100) Ox1 Location -7/Factory Parts ------- > --- POWER (1) -------- (None) > --- PROPULSION (4) --- (None) > --- UTILITY (6) ------ Armored Scrap Engine Melee Analysis Suite Improved Melee Analysis Suite Force Booster > --- WEAPON (2) ------- (None) > --- INVENTORY (5) ---- EM Pulse Gun Multitool Peak State ------------ > --- POWER ------------ Deuterium-Ion Engine > --- PROPULSION ------- Wheeled Compact-Armored Exoskeleton > --- UTILITY ---------- Armored Scrap Engine Melee Analysis Suite Melee Analysis Suite Improved Melee Analysis Suite Force Booster > --- WEAPON ----------- Shock Bomb Launcher Makeshift Spear > --- INVENTORY -------- Light Armor Plating EM Pulse Gun EM Pulse Gun Mining Laser Multitool [Rating: 45] Favorites ----------- Power Ion Engine Engine Ion Engine Propulsion Light Treads Treads Light Treads Wheel Constructs Utility Armored Scrap Engine Device Armored Scrap Engine Processor Melee Analysis Suite Protection Light Armor Plating Weapon EM Pulse Gun Energy Gun EM Pulse Gun Energy Cannon Constructs Ballistic Gun Constructs Launcher Shock Bomb Launcher Special Weapon Mining Laser Piercing Weapon Makeshift Spear Build | -11 -10 -10 -9 -7 ------- Run | Yrd Mat Sub Rec Fac Slots Evolved 6 | . . . . 6 Power . | . . . . . Propulsion 2 | . . . . 2 Utility 4 | . . . . 4 Weapon . | . . . . . Parts Attached 24 | 5 3 4 2 10 Power 2 | 1 . . 1 . Engine 2 | 1 . . 1 . Core . | . . . . . Reactor . | . . . . . Propulsion 2 | 2 . . . . Treads 2 | 2 . . . . Leg . | . . . . . Wheel . | . . . . . Hover . | . . . . . Flight . | . . . . . Utility 13 | . 3 2 1 7 Device 3 | . . 1 1 1 Storage . | . . . . . Processor 5 | . . . . 5 Hackware . | . . . . . Protection 5 | . 3 1 . 1 Artifact . | . . . . . Weapon 7 | 2 . 2 . 3 Energy Gun 3 | 2 . . . 1 Energy Cannon . | . . . . . Ballistic Gun . | . . . . . Ballistic Cannon . | . . . . . Launcher 1 | . . . . 1 Special Weapon 2 | . . 1 . 1 Impact Weapon . | . . . . . Slashing Weapon . | . . . . . Piercing Weapon 1 | . . 1 . . Special Melee Weapon . | . . . . . Unidentified Prototypes . | . . . . . Parts Lost 12 | . . . . 12 Power 1 | . . . . 1 Propulsion 3 | . . . . 3 Utility 2 | . . . . 2 Weapon 6 | . . . . 6 Highest Loss Streak 8 | . . . . 8 To Critical Strikes 1 | . . . . 1 Average Slot Usage (%) 84 | . 98 96 85 64 Engine 12 | . 14 14 14 5 Treads 22 | . 28 28 28 3 Device 10 | . . 10 14 11 Processor 5 | . . . . 23 Protection 6 | . 26 14 . . Energy Gun 15 | . 28 27 14 1 Piercing Weapon 7 | . . . 14 5 Naked Turns . | . . . . . Heaviest Build 27 | 9 13 27 27 22 Greatest Support 40 | 40 40 40 40 40 Greatest Overweight (x) 4 | . . . . 4 Average Overweight (x) . | . . . . 1 Largest Inventory Capacity 5 | 5 5 5 5 5 Average Capacity 5 | 5 5 5 5 5 Most Carried 5 | 1 5 5 5 5 Average Carried 4 | . 3 4 4 4 Final Capacity 5 | 5 5 5 5 5 Final Carried 5 | 1 5 5 4 2 Scrap Engine Consumption 145 | . . . 83 62 Constructs Created 6 | . . . . 6 Constructs Modified 10 | . . . . 10 Class Distribution -------------------- 94% | Mutant 5% | Construct Dominant Class ---------------- Mutant | -10/Materials Mutant | -10/Subcaves Mutant | -9/Recycling Mutant | -7/Factory Resources | -11 -10 -10 -9 -7 ----------- Run | Yrd Mat Sub Rec Fac Matter Collected 427 | 172 106 30 30 89 Remotely . | . . . . . Salvage Created 3502 | . 189 70 2409 834 Parts 130 | . 8 4 74 44 Haulers Intercepted . | . . . . . Recyclers Shooed 2 | . . . 2 . Parts Field Recycled . | . . . . . Retrieved Matter . | . . . . . Parts Self-Destructed 6 | . . 6 . . Prevented . | . . . . . Kills | -11 -10 -10 -9 -7 ------- Run | Yrd Mat Sub Rec Fac Combat Hostiles Destroyed 27 | . 2 2 9 14 Melee 18 | . . 1 9 8 Guns 6 | . 1 . . 5 Cannons 1 | . . . . 1 Classes Destroyed 13 | . 2 2 6 3 Worker 1 | . . . . 1 Builder 1 | . . . 1 . Tunneler 2 | . . . 1 1 Recycler 14 | . 1 . 12 1 Watcher 1 | . . . . 1 Swarmer 6 | . . 1 2 3 Grunt 6 | . 2 . . 4 Brawler 2 | . . . 1 1 Sentry 9 | . . . 4 5 Demolisher 1 | . . . 1 . Hunter 1 | . . . 1 . Programmer 1 | . . . . 1 Subdweller 1 | . . 1 . . Best Kill Streak 7 | . 2 1 5 7 Combat Bots Only 5 | . 2 1 2 5 Max Kills in Single Turn 1 | . 1 1 1 1 Gunslinging . | . . . . . Exploded . | . . . . . Melee 1 | . . 1 1 1 Uniques/NPCs Destroyed . | . . . . . Combat | -11 -10 -10 -9 -7 -------- Run | Yrd Mat Sub Rec Fac Hostile Shots Fired 324 | . 7 12 16 289 Missed 109 | . 2 6 1 100 Damage Taken 2196 | . 77 84 171 1864 Core 399 | . 11 20 31 337 Absorbed by Shields . | . . . . . Redirected to Shielding 3 | . 3 . . . Ignored by Resistances 660 | . 22 24 47 567 Regen/Repaired (Parts) 204 | . . . 12 192 Core Remaining (%) 87 | 100 . . 75 . Volleys Fired 55 | . 6 12 5 32 Largest 2 | . 2 2 1 2 Hottest 140 | . 80 140 40 140 Shots Fired 86 | . 12 19 5 50 Gun 61 | . 12 13 5 31 Cannon 17 | . . . . 17 Launcher 1 | . . . . 1 Special 7 | . . 6 . 1 Kinetic 23 | . . . . 23 Thermal 14 | . . 6 . 8 Explosive . | . . . . . Electromagnetic 49 | . 12 13 5 19 Robot Hit Streak 15 | . 10 15 11 13 Robot Miss Streak 2 | . . 1 . 2 Penetration Max . | . . . . . Secondary Targets 1 | . 1 . . . Max Gunslinging Chain 1 | . 1 . . . Shots Hit Robots 157 | . 10 12 74 61 Core Hits 68 | . 6 2 36 24 Critical Kills 1 | . . . . 1 Critical Parts Destroyed 1 | . . . . 1 Critical Strikes 13 | . . . 6 7 Destroy 3 | . . . . 3 Impale 10 | . . . 6 4 Melee Attacks 106 | . . 3 75 28 Impact . | . . . . . Slashing . | . . . . . Piercing 106 | . . 3 75 28 Sneak Attacks 30 | . . . 28 2 Combat Hostiles 11 | . . . 11 . Follow-up Attacks . | . . . . . Damage Inflicted 5853 | . 248 155 3636 1814 Guns 841 | . 159 120 55 507 Cannons 242 | . . . . 242 Explosions 119 | . 86 . . 33 Melee 4624 | . . 35 3581 1008 Ramming 3 | . 3 . . . Kinetic 452 | . . . . 452 Thermal 155 | . 86 . . 69 Explosive . | . . . . . Electromagnetic 619 | . 159 120 55 285 Impact . | . . . . . Slashing . | . . . . . Piercing 4624 | . . 35 3581 1008 Highest Corruption 3 | . . . . 3 Average Corruption 1 | . . . . 1 Corruption Purged . | . . . . . Corruption Blocked . | . . . . . Effects 2 | . . . . 2 Matter Fused 1 | . . . . 1 Data Loss (minor) 1 | . . . . 1 Overload Shots . | . . . . . Overflow Damage 596 | . . . 559 37 Projectiles . | . . . . . Explosions . | . . . . . Melee 596 | . . . 559 37 Knockbacks . | . . . . . Impact . | . . . . . Kinetic . | . . . . . Secondary . | . . . . . Self-Inflicted Damage 42 | . 25 . . 17 Shots 2 | . 1 . . 1 Rammed 1 | . 1 . . . Targets Rammed 1 | . 1 . . . Kicked . | . . . . . Crushed . | . . . . . Highest Temperature 309 | . 189 . 45 309 Average Temperature 122 | . 90 . 30 149 Received Heat Transfer 561 | . 42 27 99 393 Effects 1 | . . . . 1 Energy Bleed 1 | . . . . 1 Siege Activations . | . . . . . Robots Corrupted 2 | . 1 1 . . Combat Hostiles 2 | . 1 1 . . Parts Fried 4 | . 1 1 . 2 Impact Corruptions . | . . . . . Robots Melted . | . . . . . Combat Hostiles . | . . . . . Parts Melted . | . . . . . Heat Transferred 125 | . 100 . . 25 Parts Sabotaged . | . . . . . Parts Stolen . | . . . . . Parts Stripped . | . . . . . Power Chain Reactions 1 | . 1 . . . Alert | -11 -10 -10 -9 -7 ------- Run | Yrd Mat Sub Rec Fac Peak Influence 181 | . 71 . 181 125 Initial 69 | . . . 69 . Average 50 | . 6 . 58 67 Maximum Alert Level . | . . . . . Low Security (%) 100 | 100 100 . 100 100 Level 1 . | . . . . . Level 2 . | . . . . . Level 3 . | . . . . . Level 4 . | . . . . . Level 5 . | . . . . . High Security . | . . . . . Max Security . | . . . . . Squads Dispatched 3 | . . . . 3 Investigation . | . . . . . Extermination 1 | . . . . 1 Reinforcement . | . . . . . Assault . | . . . . . Garrison 2 | . . . . 2 Intercept . | . . . . . Searches Triggered . | . . . . . Construction Impeded . | . . . . . Haulers Reinforced . | . . . . . Active Scanning Responses . | . . . . . Cargo Convoy Interrupts 1 | . . . . 1 Stealth | -11 -10 -10 -9 -7 --------- Run | Yrd Mat Sub Rec Fac Distress Signals 1 | . . . . 1 Communications Jammed . | . . . . . Distress Signals . | . . . . . Times Spotted 43 | . 2 13 3 25 Peak Tracking Total 7 | . 2 5 1 7 Tactical Retreats 1 | . . 1 . . Traps | -11 -10 -10 -9 -7 ------- Run | Yrd Mat Sub Rec Fac Traps Triggered . | . . . . . Indirectly . | . . . . . Trap Hack Attempts . | . . . . . Triggered . | . . . . . Disarmed . | . . . . . Reprogrammed . | . . . . . Reused . | . . . . . Traps Extracted . | . . . . . Installed . | . . . . . Triggered . | . . . . . Machines | -11 -10 -10 -9 -7 ---------- Run | Yrd Mat Sub Rec Fac Machines Disabled 2 | . 1 . . 1 Max in Single Turn 1 | . 1 . . 1 Machines Repaired . | . . . . . Machines Dismantled . | . . . . . Machines Sabotaged . | . . . . . Overloaded Fab Kills . | . . . . . Hacking | -11 -10 -10 -9 -7 --------- Run | Yrd Mat Sub Rec Fac Machines Accessed 5 | . . 1 2 2 Terminals 3 | . . . 2 1 Fabricators 1 | . . . . 1 Repair Stations . | . . . . . Recycling Units . | . . . . . Scanalyzers . | . . . . . Garrison Access . | . . . . . Total Hacks 20 | . . 5 12 3 Successful 11 | . . 5 5 1 Failed 9 | . . . 7 2 Catastrophic 1 | . . . 1 . Database Lockouts . | . . . . . Manual . | . . . . . Terminals 13 | . . . 12 1 Fabricators 2 | . . . . 2 Repair Stations . | . . . . . Recycling Units . | . . . . . Scanalyzers . | . . . . . Garrison Access . | . . . . . Terminal Hacks 11 | . . 5 5 1 Record 9 | . . 5 4 . Part Schematic 1 | . . . 1 . Open DSF 1 | . . . . 1 Fabricator Hacks . | . . . . . Repair Station Hacks . | . . . . . Recycling Unit Hacks . | . . . . . Scanalyzer . | . . . . . Garrison Access Hacks . | . . . . . Unauthorized Hacks . | . . . . . Terminals . | . . . . . Fabricators . | . . . . . Repair Stations . | . . . . . Recycling Units . | . . . . . Scanalyzers . | . . . . . Garrison Access . | . . . . . Data Cores Recovered . | . . . . . Used . | . . . . . Hacking Detections 3 | . . . 1 2 Full Trace Events . | . . . . . Feedback Events . | . . . . . Feedback Blocked . | . . . . . Robot Schematics Acquired . | . . . . . Robots Built . | . . . . . Authchips . | . . . . . Time . | . . . . . Total Robot Build Rating . | . . . . . Part Schematics Acquired 1 | . . . 1 . Parts Built . | . . . . . Authchips . | . . . . . Time . | . . . . . Total Part Build Rating . | . . . . . Parts Repaired . | . . . . . Time . | . . . . . Parts Recycled . | . . . . . Recycled Matter . | . . . . . Retrieved Matter . | . . . . . Retrieved Components . | . . . . . Parts Scanalyzed . | . . . . . Part Schematics Acquired . | . . . . . Parts Damaged . | . . . . . Bothacking | -11 -10 -10 -9 -7 ------------ Run | Yrd Mat Sub Rec Fac Used RIF Installer . | . . . . . Robots Hacked . | . . . . . Non-combat . | . . . . . Combat . | . . . . . Robot Hacks Applied . | . . . . . Relay Couplers Released . | . . . . . Fabnet Peak Effective % . | . . . . . Robots Rewired . | . . . . . Allies Hacked . | . . . . . Hacks Repelled . | . . . . . Allies | -11 -10 -10 -9 -7 -------- Run | Yrd Mat Sub Rec Fac Total Allies . | . . . . . Largest Group . | . . . . . Highest-Rated Group . | . . . . . Highest-Rated Ally . | . . . . . Total Orders . | . . . . . Ally Attacks . | . . . . . Total Damage . | . . . . . Kills . | . . . . . Allies Corrupted . | . . . . . Allies Melted . | . . . . . Intel | -11 -10 -10 -9 -7 ------- Run | Yrd Mat Sub Rec Fac Robot Analysis Total . | . . . . . Derelict Logs Recovered 2 | . . 2 . . Drone Launches . | . . . . . Drone Recoveries . | . . . . . Exploration | -11 -10 -10 -9 -7 ------------- Run | Yrd Mat Sub Rec Fac Turns Passed 4336 | 72 594 936 1786 948 Spaces Moved 2402 | 44 304 544 1011 499 Core 99 | 5 . . . 94 Treads 2119 | 39 304 544 1011 221 Legs . | . . . . . Wheels 39 | . . . . 39 Hover 145 | . . . . 145 Flight . | . . . . . Fastest Speed 50 | 50 160 160 160 80 Average Speed 157 | 147 160 160 160 149 Slowest Speed 252 | 160 160 160 160 252 Overloaded Moves . | . . . . . Propulsion Burnouts . | . . . . . Robots Hopped . | . . . . . Cave-ins Triggered . | . . . . . Exploration Rate (%) 38 | 3 39 36 99 13 Regions Visited 4 Branch Regions 2 Pre-discovered Areas 1 | . . 1 . . Known Exits Taken 1 | . . 1 . . Unknown Exits Taken 3 | 1 1 . 1 . Scrap Searched 2 | . . 2 . . Spaces Dug 4 | . . 1 3 . Terrain Destroyed 10 | . 6 1 3 . Melee 4 | . . 1 3 . Projectile . | . . . . . AOE 6 | . 6 . . . Terrain Rammed . | . . . . . Walls Destroyed . | . . . . . Machines Disabled . | . . . . . Actions | -11 -10 -10 -9 -7 --------- Run | Yrd Mat Sub Rec Fac Total 2737 | 49 398 577 1094 619 Wait 125 | . 79 2 . 44 Move 2398 | 43 303 543 1010 499 Hop . | . . . . . Pick Up 11 | 1 5 5 . . Fast Attach 15 | 5 2 1 1 6 Attach 4 | . . . 1 3 Detach 1 | . . . . 1 Swap 5 | . 1 3 . 1 Drop 15 | . 1 7 2 5 Fire 55 | . 6 12 5 32 Melee 106 | . . 3 75 28 Ram . | . . . . . Kick . | . . . . . Crush 1 | . 1 . . . Escape Stasis . | . . . . . Rewire . | . . . . . Trap . | . . . . . Miscellaneous 1 | . . 1 . . Route ------- -11/Scrapyard -10/Materials (discovered 2 exits: [*Min] / *Sub) -10/Subcaves (discovered 2 exits: [*Mat] / *Rec) -9/Recycling -7/Factory (discovered 1 exit: [*Fac]) History --------- Turn | Location | Event 3 | -11/Scrapyard | Discovered new exit (range 15) 73 | -11/Scrapyard | Entered Materials 93 | -10/Materials | Discovered new exit (range 16) 302 | -10/Materials | Build established: Mutant 342 | -10/Materials | Discovered new exit (range 6) 667 | -10/Materials | Entered Subcaves 668 | -10/Subcaves | Shifting Twisted Machinery released Multitool 679 | -10/Subcaves | Shifting Twisted Machinery released Shrapnel Trap 826 | -10/Subcaves | Visited Clippyterm 830 | -10/Subcaves | Learned location of Extension (-6) 830 | -10/Subcaves | Learned Factory trap positions 830 | -10/Subcaves | Learned Factory emergency access door positions 926 | -10/Subcaves | Identified exit to Recycling 1230 | -10/Subcaves | Discovered new exit (range 13) 1433 | -10/Subcaves | Learned Materials trap positions 1603 | -10/Subcaves | Entered Recycling 1607 | -9/Recycling | Found Scrap Engine 2195 | -9/Recycling | Discovered new exit (range 5) 3389 | -9/Recycling | Entered Factory 3389 | -7/Factory | Evolved 6 slots: Propulsion x2, Utility x4 3390 | -7/Factory | Loaded intel: 93 trap records 3827 | -7/Factory | Discovered new exit (range 14) 4118 | -7/Factory | Lost 3 parts (1u2w) 4234 | -7/Factory | Garrison activated, responded to threat 4317 | -7/Factory | Cargo convoy interrupted 4337 | -7/Factory | Self-destructed Last Messages --------------- destabilization (-6). M-28 Smith repairs M-28 Smith. Wheeled Compact-Armored Exoskeleton destroyed. Wheeled Compact-Armored Exoskeleton core remains intact and functional. Penetrated by Slug. Mining Laser destroyed. Deuterium-Ion Engine destroyed. Arm. Scrap Engine damaged due to network destabilization (-8). P-60 Hacker resets A-27 Freighter, system corruption cleaned. H-55 Commando suffers critical hit (Destroy). EM Pulse Gun destroyed. P-60 Hacker resets X-67 Chaingunner, system corruption cleaned. Critical hit (Destroy). Wheeled Compact-Armored Exoskeleton destroyed. Arm. Scrap Engine damaged due to network destabilization (-10). Map ----- +----------------------------------------------------+ | #??????????## ##?????????????# #??? | | """#???????????# #???????????############+#### | | """#???????????# ???????? | | """#???????????# ??????? ^ | | #???????????# ??????? | | #???????????# ?????? ^ ^ | | ####???????????# ?????? ^^ ^ | | ???????????????## #######??????################### | | ????????????????# ????????????????????????????# | | ????????????????# ????????????????????????????# "" | | ????????????????# ????????????????????????????# "" | | ??????????????????????????????????????????????# "" | | ??????????????????????????????????????????????# | | ??????##+########??????????????#+###+####+##??# " | | ??????# ?#?############ #### "G | | ??????# ?? + " | | ??????# ? ### | | ###???# """""" """" """ ""#?#### | | #??## """""" """" " """ % """#???? | | #??# """""" """" """" % "#???^ | | ##?# """""" i "F"#??^ | | #?# % m A """#??? | | #?# """""" """ m"""""" #?? | | #?# """""" "%% """""" #?? | | #?# """"" %p% """""" %#####+ | | ### """"" x@ """" | | h | | % | | h % | | ! a | | ! % | | ! ### ^ %% | | #?# ^ % | | #?# ^ ^^h | | ! #?# ^ ^^% ## | | ### #?# #####+##################? | | #?## ##?# # %% #?????????????? | | #??# #??# # "" #?????????????? | | #??# #??### ##########""" #?????????????? | | #??# #????# #????????#"R #?????????????? | | #####??# #????# #????????#""" """ #?????????????? | | ????????+#????#+#????????#""" """ #?????????????? | | ?????????????????????????# """ #?????????????? | | ?????????????????????????# #?????????????? | | ?????????????????????????########+####???????????? | | ????????????????????????????# #???????????? | | ????????????????????????????# """ #???????????? | | ????????????????????????????#! """"" #???????????? | | ????????????????????????????# """"" #???????????? | | ????????????????????????????# #???????????? | +----------------------------------------------------+ Best States ------------- Heat Dissipation 34 Energy Generation 13 Energy Capacity 250 Matter Stores 300 Matter Capacity 300 Sight Range 16 Robot Scan Range 14 Terrain Scan Density 10 Armor Coverage 800 Resistance: KI 20 Resistance: TH 20 Resistance: EX 20 Resistance: EM 20 Resistance: I 20 Resistance: S 20 Resistance: P 20 Propulsion Shielding 33 Evasion (%) 49 Melee Accuracy 20 Recoil Reduction 2 Force Boost 20 Offensive Hacking 10 Item Schematics ----------------- Med. Armor Plating | -9/Recycling | Hacked Robot Schematics ------------------ None Fabricated ------------ Nothing Alien Tech Used ----------------- None Achievements -------------- None Challenges ------------ None Game ------ Seed ThermoelectricCommUnit Manual? 0 Play Time 00:30:08 Cumulative 18.8 hours Start 2024.04.04 @ 21:46:40 End 2024.04.04 @ 22:13:04 Sessions 1 Manual Loads 0 Difficulty Adventurer Special Mode None Game No. 21 Rogue 0 Adventurer 21 Explorer 0 Win Type - Total 1 Types 1/0/0/0/0/0/0/0/0 Lore% 15 Gallery% 33 Achievement% 28 Wizard Run 0 Options --------- Layout 1 ASCII 0 Keyboard 0 Movement Mouse Keybinds 0 Fullscreen 1 Font 32/SmallcapsGlow Map View 50x40 Zoom Use 0% Tactical HUD 0 Map Filters NONE Filters NONE Steam 1 RUN: 896c1914-f495-4eea-85c7-8f105c23ba3f